Cogmind - Beta 16 @@@ ROGUE MODE // 2025.11.10 @ 00:15:58 Player: Red Box Result: Destroyed by V9-VRB(R) with Subdweller Machine Gun Performance ------------- Evolutions (0) 0 Regions Visited (3) 600 Robots Destroyed (37) 185 Value Destroyed (819) 819 Prototype IDs (0) 0 Alien Tech Used (0) 0 Bonus (0) 0 TOTAL SCORE: 1604 Bonus ------- None Cogmind --------- Core Integrity 0/250 Matter 184/300 Energy 100/100 System Corruption 0% Temperature Cool (0) Movement Walking (120) Location -10/Subcaves Parts ------- > --- POWER (1) -------- (None) > --- PROPULSION (2) --- Aluminum Leg Aluminum Leg > --- UTILITY (2) ------ Small Storage Unit Core Shielding > --- WEAPON (2) ------- Light Cannon Rocket Launcher > --- INVENTORY (8) ---- Light Treads Light Treads High-capacity Storage Unit High-capacity Matter Pod (200) EM Pulse Gun Light Cannon Light Cannon Hammer Peak State ------------ > --- POWER ------------ Light Ion Engine > --- PROPULSION ------- Aluminum Leg Aluminum Leg > --- UTILITY ---------- Small Storage Unit Improved Terrain Scanner > --- WEAPON ----------- Assault Rifle Assault Rifle > --- INVENTORY -------- Ion Engine Light Treads Light Treads Wheel Compact Wheel Light Assault Rifle [Rating: 9] Favorites ----------- Power Ion Engine Engine Ion Engine Propulsion Aluminum Leg Leg Aluminum Leg Utility Small Storage Unit Device Terrain Scanner Storage Small Storage Unit Protection Core Shielding Weapon Light Cannon Energy Gun EM Pulse Gun Ballistic Gun Assault Rifle Ballistic Cannon Light Cannon Launcher Grenade Launcher Special Weapon Mining Laser Impact Weapon Hammer Build | -11 -10 -10 -10 ------- Run | Yrd Mat Min Sub Slots Evolved . | . . . . Power . | . . . . Propulsion . | . . . . Utility . | . . . . Weapon . | . . . . Parts Attached 28 | 8 13 7 . Power 2 | 1 1 . . Engine 2 | 1 1 . . Core . | . . . . Reactor . | . . . . Propulsion 10 | 2 3 5 . Treads . | . . . . Leg 10 | 2 3 5 . Wheel . | . . . . Hover . | . . . . Flight . | . . . . Utility 5 | 2 3 . . Device 3 | 1 2 . . Storage 1 | 1 . . . Processor . | . . . . Hackware . | . . . . Protection 1 | . 1 . . Artifact . | . . . . Weapon 11 | 3 6 2 . Energy Gun 1 | . 1 . . Energy Cannon . | . . . . Ballistic Gun 3 | 3 . . . Ballistic Cannon 3 | . 2 1 . Launcher 2 | . 1 1 . Special Weapon 1 | . 1 . . Impact Weapon 1 | . 1 . . Slashing Weapon . | . . . . Piercing Weapon . | . . . . Special Melee Weapon . | . . . . Unidentified Prototypes . | . . . . Parts Lost 2 | . 1 . 1 Power 1 | . . . 1 Propulsion . | . . . . Utility 1 | . 1 . . Weapon . | . . . . Highest Loss Streak 1 | . 1 . 1 To Critical Strikes . | . . . . Average Backups 7 | 4 7 8 8 Power . | . . . . Propulsion 2 | 3 3 2 2 Utility 1 | . . 1 2 Weapon 3 | . 3 4 4 Tool/Special . | . . . . Unused Backups 8 | . 2 1 5 Power . | . . . . Propulsion 4 | . 2 . 2 Utility 3 | . . 1 2 Weapon 1 | . . . 1 Tool/Special . | . . . . Average Slot Usage (%) 99 | . 99 100 99 Engine 13 | . 14 14 13 Leg 28 | . 28 28 28 Device 7 | . 13 . . Storage 14 | . 14 14 14 Protection 6 | . . 14 14 Ballistic Gun 2 | . 3 . . Ballistic Cannon 23 | . 20 27 24 Impact Weapon 2 | . 2 . 2 Peak Build Rating 9 | 9 9 8 8 Average Rating 7 | 5 7 7 7 On Entrance 5 | . 9 7 7 Avg Prop Armor Cover (%) . | . . . . Naked Turns . | . . . . Heaviest Build 18 | 13 17 18 18 Greatest Support 20 | 20 20 20 20 Greatest Overweight (x) 2 | 2 . . . Average Overweight (x) . | . . . . Largest Inventory Capacity 8 | 8 8 8 8 Average Capacity 7 | 7 8 8 8 Most Carried 8 | 7 8 8 8 Average Carried 7 | 4 7 7 8 Final Capacity 8 | 8 8 8 8 Final Carried 8 | 7 8 8 8 Class Distribution -------------------- 100% | Mutant Dominant Class ---------------- Mutant | -10/Materials Mutant | -10/Mines Mutant | -10/Subcaves Resources | -11 -10 -10 -10 ----------- Run | Yrd Mat Min Sub Matter Collected 1283 | 376 420 440 47 Remotely . | . . . . Salvage Created 708 | 117 332 231 28 Parts 56 | 10 25 20 1 Haulers Intercepted 1 | . 1 . . Recyclers Shooed 2 | 1 1 . . Parts Field Recycled . | . . . . Retrieved Matter . | . . . . Parts Self-Destructed 7 | . . . 7 Prevented . | . . . . Parts Restored . | . . . . Kills | -11 -10 -10 -10 ------- Run | Yrd Mat Min Sub Combat Hostiles Destroyed 28 | . 13 12 3 Cannons 24 | . 11 12 1 AOE 4 | . 2 . 2 Classes Destroyed 8 | 2 5 . 1 Builder 1 | . 1 . . Tunneler 3 | 3 . . . Hauler 1 | . 1 . . Recycler 1 | 1 . . . Watcher 3 | . 3 . . Swarmer 13 | . 6 6 1 Grunt 13 | . 7 6 . Subdweller 2 | . . . 2 Best Kill Streak 6 | 1 6 3 2 Combat Bots Only 5 | . 5 3 2 Max Kills in Single Turn 2 | 1 2 1 1 Gunslinging . | . . . . Exploded 1 | . 1 . 1 Melee . | . . . . Uniques/NPCs Destroyed . | . . . . Combat | -11 -10 -10 -10 -------- Run | Yrd Mat Min Sub Hostile Shots Fired 98 | . 36 37 25 Missed 26 | . 10 10 6 Hits 72 | . 26 27 19 Projectile 72 | . 26 27 19 AOE 2 | . . . 2 Critical Strikes 1 | . . 1 . Damage Taken 1074 | . 325 316 433 Core 257 | . 77 35 145 Absorbed by Shields . | . . . . Redirected to Shielding 40 | . . 8 32 Regen/Repaired (Parts) 59 | . 59 . . Core Remaining (%) 100 | 100 . . . Volleys Fired 83 | 16 33 24 10 Largest 2 | 2 2 2 2 Hottest 100 | 40 100 60 63 Shots Fired 163 | 32 64 48 19 Gun 35 | 32 3 . . Cannon 117 | . 56 48 13 Launcher 10 | . 4 . 6 Special 1 | . 1 . . Kinetic 149 | 32 56 48 13 Thermal 1 | . 1 . . Explosive 10 | . 4 . 6 Electromagnetic 3 | . 3 . . Robot Hit Streak 9 | 3 9 6 9 Robot Miss Streak 4 | 3 4 3 4 Penetration Max . | . . . . Secondary Targets . | . . . . Shots Hit Robots 95 | 17 37 31 10 Core Hits 44 | 5 17 15 7 Critical Kills . | . . . . Critical Parts Destroyed 1 | . 1 . . Critical Strikes 7 | . 6 1 . Blast 6 | . 5 1 . Smash 1 | . 1 . . Melee Attacks 59 | . 37 5 17 Impact 59 | . 37 5 17 Slashing . | . . . . Piercing . | . . . . Sneak Attacks 1 | . 1 . . Combat Hostiles . | . . . . Follow-up Attacks . | . . . . Damage Inflicted 2265 | 216 1001 568 480 Guns 243 | 216 27 . . Cannons 1214 | . 550 568 96 Explosions 731 | . 347 . 384 Melee 77 | . 77 . . Ramming . | . . . . Kinetic 1430 | 216 550 568 96 Thermal . | . . . . Explosive 731 | . 347 . 384 Electromagnetic 27 | . 27 . . Impact 77 | . 77 . . Slashing . | . . . . Piercing . | . . . . Highest Corruption . | . . . . Average Corruption . | . . . . Corruption Purged . | . . . . Corruption Blocked . | . . . . Overload Shots . | . . . . Overflow Damage 62 | . 62 . . Projectiles 41 | . 41 . . Explosions 2 | . 2 . . Melee 19 | . 19 . . Knockbacks 12 | . 5 6 1 Impact . | . . . . Kinetic 10 | . 4 5 1 Secondary 2 | . 1 1 . Self-Inflicted Damage 26 | . . . 26 Shots 1 | . . . 1 Rammed . | . . . . Targets Rammed . | . . . . Kicked . | . . . . Crushed . | . . . . Highest Temperature 54 | . 54 51 . Average Temperature 20 | . 21 19 . Received Heat Transfer 318 | . 126 162 30 Siege Activations . | . . . . Martial Activations . | . . . . Shielding Activations . | . . . . Robots Disrupted . | . . . . Combat Hostiles . | . . . . Robots Corrupted 1 | . 1 . . Combat Hostiles . | . . . . Parts Fried . | . . . . Impact Corruptions 1 | . 1 . . Robots Melted . | . . . . Combat Hostiles . | . . . . Parts Melted . | . . . . Heat Transferred . | . . . . Parts Sabotaged . | . . . . Parts Stolen . | . . . . Parts Stripped . | . . . . Power Chain Reactions . | . . . . Alert | -11 -10 -10 -10 ------- Run | Yrd Mat Min Sub Maximum Alert Level . | . . . . Low Security (%) 100 | 100 100 100 . Level 1 . | . . . . Level 2 . | . . . . Level 3 . | . . . . Level 4 . | . . . . Level 5 . | . . . . High Security . | . . . . Max Security . | . . . . Peak Influence 186 | 5 186 134 . Initial 24 | . . 24 . Average 63 | . 80 45 . Influence Increases 913 | 20 528 344 21 Destroy 0b10 Robot/C 520 | . 260 240 20 Destroy 0b10 Robot/NC 45 | 20 25 . . Destroy Leader 108 | . 58 50 . Allied During Kill 1 | . . . 1 Trap Triggered on 0b10 30 | . 30 . . Successful Hack 63 | . 56 7 . Select Force Hacks 30 | . 30 . . Disable Machine 30 | . 15 15 . Destroy Structure 41 | . 39 2 . Partial Spotted 15 | . 15 . . Lose Combat Pursuer 30 | . . 30 . Influence Decreases 913 | 20 464 408 21 Entered New Map 40 | . . 40 . Time Decay 863 | 20 454 368 21 Lost Part 10 | . 10 . . Squads Dispatched 3 | . 2 1 . Investigation 2 | . 1 1 . Extermination . | . . . . Reinforcement 1 | . 1 . . Assault . | . . . . Garrison . | . . . . Intercept . | . . . . Searches Triggered . | . . . . Construction Impeded . | . . . . Haulers Reinforced . | . . . . Active Scanning Responses . | . . . . Cargo Convoy Interrupts . | . . . . Stealth | -11 -10 -10 -10 --------- Run | Yrd Mat Min Sub Distress Signals 1 | . 1 . . Communications Jammed . | . . . . Distress Signals . | . . . . Times Spotted 39 | . 19 14 6 Peak Tracking Total 5 | . 5 3 4 Tactical Retreats 2 | . . 2 . Traps | -11 -10 -10 -10 ------- Run | Yrd Mat Min Sub Traps Triggered 1 | . 1 . . Indirectly . | . . . . Trap Hack Attempts . | . . . . Triggered . | . . . . Disarmed . | . . . . Reprogrammed 9 | . 9 . . Reused 3 | . 3 . . Traps Extracted . | . . . . Installed . | . . . . Triggered 3 | . 3 . . Machines | -11 -10 -10 -10 ---------- Run | Yrd Mat Min Sub Machines Disabled 2 | . 1 1 . Max in Single Turn 1 | . 1 1 . Machines Repaired . | . . . . Machines Dismantled . | . . . . Machines Sabotaged . | . . . . Overloaded Fab Kills . | . . . . Hacking | -11 -10 -10 -10 --------- Run | Yrd Mat Min Sub Machines Accessed 13 | . 11 2 . Terminals 10 | . 8 2 . Fabricators . | . . . . Repair Stations 1 | . 1 . . Recycling Units 2 | . 2 . . Scanalyzers . | . . . . Garrison Access . | . . . . Total Hacks 41 | . 35 6 . Successful 22 | . 20 2 . Failed 19 | . 15 4 . Catastrophic 5 | . 2 3 . Database Lockouts . | . . . . Manual 22 | . 16 6 . Terminals 26 | . 20 6 . Fabricators . | . . . . Repair Stations 8 | . 8 . . Recycling Units 7 | . 7 . . Scanalyzers . | . . . . Garrison Access . | . . . . Terminal Hacks 9 | . 7 2 . Robot Schematic 1 | . . 1 . Robot Analysis 3 | . 2 1 . Terminal Index 1 | . 1 . . Locate Traps 2 | . 2 . . Reprogram Traps 2 | . 2 . . Fabricator Hacks . | . . . . Repair Station Hacks 3 | . 3 . . Scan Component 2 | . 2 . . Repair 1 | . 1 . . Recycling Unit Hacks 1 | . 1 . . Retrieve Components 1 | . 1 . . Scanalyzer . | . . . . Garrison Access Hacks . | . . . . Unauthorized Hacks 9 | . 9 . . Terminals 5 | . 5 . . Assimilate 2 | . 2 . . Botnet 2 | . 2 . . Operators 1 | . 1 . . Fabricators . | . . . . Repair Stations . | . . . . Recycling Units 4 | . 4 . . Monitor 1 | . 1 . . Reject 1 | . 1 . . Mask 1 | . 1 . . Tunnel 1 | . 1 . . Scanalyzers . | . . . . Garrison Access . | . . . . Data Cores Recovered . | . . . . Used . | . . . . Hacking Detections 12 | . 10 2 . Full Trace Events 2 | . . 2 . Feedback Events . | . . . . Feedback Blocked . | . . . . Robot Schematics Acquired 1 | . . 1 . Robots Built . | . . . . Authchips . | . . . . Time . | . . . . Total Robot Build Rating . | . . . . Part Schematics Acquired . | . . . . Parts Built . | . . . . Authchips . | . . . . Time . | . . . . Total Part Build Rating . | . . . . Part Studies Acquired . | . . . . Parts Repaired 1 | . 1 . . Time 18 | . 18 . . Parts Recycled . | . . . . Recycled Matter . | . . . . Retrieved Matter . | . . . . Retrieved Components 10 | . 10 . . Parts Scanalyzed . | . . . . Part Schematics Acquired . | . . . . Parts Damaged . | . . . . Bothacking | -11 -10 -10 -10 ------------ Run | Yrd Mat Min Sub Used RIF Installer . | . . . . Robots Hacked . | . . . . Non-combat . | . . . . Combat . | . . . . Robot Hacks Applied . | . . . . Relay Couplers Released . | . . . . Fabnet Peak Effective % . | . . . . Robots Rewired . | . . . . Allies Hacked . | . . . . Hacks Repelled . | . . . . Allies | -11 -10 -10 -10 -------- Run | Yrd Mat Min Sub Total Allies 2 | . . 2 . Largest Group 2 | . . 2 2 Highest-Rated Group 42 | . . 42 42 Highest-Rated Ally 31 | . . 31 31 Total Orders . | . . . . Ally Attacks . | . . . . Total Damage . | . . . . Kills . | . . . . Allies Corrupted 1 | . . . 1 Allies Melted . | . . . . Intel | -11 -10 -10 -10 ------- Run | Yrd Mat Min Sub Active Infowar (turns) 1724 | 20 1704 . . Terrain 1724 | 20 1704 . . Robot Analysis Total 3 | . 2 1 . Derelict Logs Recovered 1 | . . 1 . Drone Launches . | . . . . Drone Recoveries . | . . . . Exploration | -11 -10 -10 -10 ------------- Run | Yrd Mat Min Sub Turns Passed 3357 | 184 1819 1069 285 Spaces Moved 1888 | 98 927 720 143 Core 12 | 12 . . . Treads . | . . . . Legs 1876 | 86 927 720 143 Wheels . | . . . . Hover . | . . . . Flight . | . . . . Fastest Speed 50 | 50 120 120 120 Average Speed 120 | 120 120 120 120 Slowest Speed 150 | 150 120 120 120 Overloaded Moves . | . . . . Propulsion Burnouts . | . . . . Robots Hopped . | . . . . Potential Cave-ins . | . . . . Cave-ins Triggered . | . . . . Exploration Rate (%) 54 | 6 100 99 11 Regions Visited 3 Branch Regions 2 Pre-discovered Areas 1 | . 1 . . Known Exits Taken . | . . . . Unknown Exits Taken 3 | 1 1 1 . Scrap Searched 1 | . . 1 . Spaces Dug 28 | . 18 2 8 Terrain Destroyed 94 | . 40 2 52 Melee 20 | . 17 2 1 Projectile 1 | . 1 . . AOE 73 | . 22 . 51 Terrain Rammed . | . . . . Walls Destroyed . | . . . . Machines Disabled . | . . . . Actions | -11 -10 -10 -10 --------- Run | Yrd Mat Min Sub Total 2699 | 128 1497 869 205 Wait 585 | . 455 100 30 Move 1885 | 97 926 719 143 Hop . | . . . . Pick Up 18 | 6 9 3 . Fast Attach 12 | 8 4 . . Attach . | . . . . Detach 1 | 1 . . . Swap 36 | . 21 10 5 Drop 20 | . 12 8 . Fire 83 | 16 33 24 10 Melee 59 | . 37 5 17 Ram . | . . . . Kick . | . . . . Crush . | . . . . Escape Stasis . | . . . . Rewire . | . . . . Trap . | . . . . Miscellaneous . | . . . . Route ------- -11/Scrapyard -10/Materials (discovered 5 exits: [*Mat x3] / *Min x2) -10/Mines (discovered 4 exits: [*Mat x2] / [*Exi] / [*Sub]) -10/Subcaves History --------- Turn | Location | Event 9 | -11/Scrapyard | Discovered new exit (range 15) 185 | -11/Scrapyard | Entered Materials 300 | -10/Materials | Build established: Mutant 566 | -10/Materials | Discovered new exit (range 16) 708 | -10/Materials | Discovered new exit (range 10) 1104 | -10/Materials | Discovered new exit (range 13) 1306 | -10/Materials | Discovered new exit (range 7) 1515 | -10/Materials | Discovered new exit (range 15) 1670 | -10/Materials | Repaired Broken Lgt. Cannon 2004 | -10/Materials | Entered Mines 2011 | -10/Mines | Received a Rocket Launcher from a helpful Derelict 2024 | -10/Mines | Discovered new exit (range 14) 2132 | -10/Mines | Discovered new exit (range 13) 2266 | -10/Mines | Discovered new exit (range 8) 2560 | -10/Mines | Deemed a non-threat by the Exiles lab entrance 2561 | -10/Mines | Discovered new exit (range 5) 2773 | -10/Mines | Learned Materials terminal intel 3073 | -10/Mines | Entered Subcaves 3073 | -10/Subcaves | Accompanied by 2 allies 3078 | -10/Subcaves | Led the pair of lost Derelicts to an unsafe place 3100 | -10/Subcaves | A swath of the cavern ceiling suddenly collapsed 3180 | -10/Subcaves | Core integrity fell below 50% 3341 | -10/Subcaves | Ambushed by Subdweller buried in earth 3342 | -10/Subcaves | Core integrity fell below 20% 3349 | -10/Subcaves | Ambushed by Subdweller buried in earth 3358 | -10/Subcaves | Destroyed by V9-VRB(R) with Subdweller Machine Gun Last Messages --------------- 03107_ Acquired 10 matter. 03152_ Subatomizers dissect the Disposable Heat Sink. 03165_ Subatomizers dissect the Sub. Monowheel. 03165_ Destroyed Flight Unit. 03168_ S-10 Pest destroyed. 03173_ Acquired 5 matter. 03178_ Acquired 32 matter. 03186_ Lgt. Assault Rifle fries itself beyond repair. 03339_ B0-X4I(z) destroyed. 03340_ MM-4P8(R) destroyed. 03342_ V9-VRB(R): "GOODGOOD!" 03346_ WP-U3X(R) knocked back. 03347_ Ion Engine destroyed. 03349_ Destroyed Scrap Shield. 03350_ 8V-5H5(R): "ARGHSUB!" 03350_ RX-QLS(R): "THANKSYOU!" 03352_ WP-U3X(R) destroyed. 03356_ The unstable cave ceiling collapses. Map ----- +----------------------------------------------------+ | ?????????????????????????????????????????????????? | | ?????????????????????????????????????????????????? | | ?????????????????????????????????????????????????? | | ?????????????????????????????????????????????????? | | ?????????????????????????????????????????????????? | | ?????????????????????????????????????????????????? | | ?????????????????????????????????????????????????? | | ?????????????????????????????????????????????????? | | ?????????????????????????????????????????????????? | | ?????????????????????????????????????????????????? | | ??????????????????????###?#??????????????????????? | | ??????????????????#### #?????????????????????? | | ??????????????????# # ?????????????????????? | | ??????????????????# ???###???????????????? | | #?????????????????# R ! ??## ##??????????????? | | ##???????????##### = ???# ##?????????????? | | ##?????????## # ##?# ##????????????? | | ##???????? R ## #????????????? | | ###?????? # ###????????????? | | # ##????? #? & ### ##??????????????? | | # ##??? #?## % # ## ##???????????????? | | # #### #?# # #????????????????? | | ## " " #?# ## ##???????????????? | | ### #" ## ##### ;; ##??????????????? | | ## "###? # # ;;# #??????????????? | | ### ##?? # @ ;# #??????????????? | | ####""##?? # R ##?????????????? | | ##?#"" ########??## ; #??######?????? | | ???## "%" ""#### ### ;## #?# ##????? | | ????#" ## "" "# #?##;; ## #? ##???? | | ????#######" "# #??# ##### ## ### | | ??????????###"######?# #??### | | ????????????#"##"# ### #????## | | ????????????# ##" ### ###???# | | ???????????##"### ##??# ### ? | | ???????????# #### ### ##?# ##????????? | | ???????????# " #?##### #?#### #?????????? | | ???????????# " #?# ###??# #?????????? | | ??????????### ### #### ####?????????? | | ?????????## "" ##"" ## #????????????? | | ?????????#" !&*"""" #### ##????????????? | | ?????????#" & ##?## #?????????????? | | ?????????## [##"#"" #### #?????????????? | | ??????????# %##### ##????????????? | | ??????????## = ???## #????????????? | | ???????????#&%#????# ##### #??????????? | | ??????????? ] ????# #???# # #???????? | | ??????????## ????## #####??? ##? # #??????? | | ???????????# ?????####?????? #???#????????? | | ???????????# ????????????? ## #????????????? | +----------------------------------------------------+ Best States ------------- Heat Dissipation 35 Energy Generation 10 Energy Capacity 250 Matter Stores 300 Matter Capacity 300 Sight Range 16 Terrain Scan Range 16 Terrain Scan Density 10 Core Shielding 20 Evasion (%) 55 Item Schematics ----------------- None Robot Schematics ------------------ O-16 Technician | -10/Mines | Hacked Fabricated ------------ Nothing Repaired ---------- Lgt. Cannon | 50% | -10/Materials | Broken Studied --------- None Alien Tech Used ----------------- None Achievements -------------- None Challenges ------------ None Game ------ Seed SurgeTowerClaymores Manual? 0 Play Time 00:25:11 Cumulative 679.9 hours Start 2025.11.09 @ 23:53:04 End 2025.11.10 @ 00:15:58 Sessions 1 Manual Loads 0 Difficulty Rogue Special Mode None Game No. 476 Rogue 476 Adventurer 0 Explorer 0 Win Type - Total 1 Types 1/0/0/0/0/0/0/0/0/0 Lore% 62 Gallery% 66 Achievement% 40 Wizard Run 0 Options --------- Layout 1 ASCII 0 Keyboard 0 Movement Mouse Keybinds 0 Fullscreen 1 Font 20/SmallcapsGlow Map View 54x42 Zoom Use 0% Tactical HUD 1 Map Filters NONE Filters NONE Steam 1 RUN: 4f3a6311-be05-4627-975d-e05573f99b8f